Workbook

Sheet UE Sale to Wabash Valley Power
C1: UNION ELECTRIC COMPANY | M1: 2023-11-02
C2: PROPERTY TAX IMPACT for SALE of TRANSMISSION MILEAGE to WABASH VALLEY POWER ALLIANCE
E4: CO-OP | F4: CO-OP
E5: ASSMT. | F5: ASSMT.
E6: LOST | F6: GAINED
G8: NET | I8: U.E. | J8: U.E. | K8: NET | O8: LOC.ASS'D
C9: CO-OP | G9: CO-OP | H9: U.E. | I9: ASSESSMENT | J9: ASSESSMENT | K9: U.E. | L9: NET | O9: SCHOOL
C10: MILES | G10: ASSMT. | H10: MILES | I10: LOST | J10: GAINED | K10: ASSESSMENT | L10: ASSESSMENT | M10: 2022 | N10: CHANGE | O10: CHANGE
A11: COUNTY | B11: TAXING JURISDICTION | C11: SOLD | D11: Cape Girardeau | E11: =839.18*0.32 -> 268.5376 | F11: =839.18*0.32 -> 268.5376 | G11: CHANGE | H11: SOLD | I11: 48801.07 | J11: 48801.07 | K11: CHANGE | L11: CHANGE | M11: TAX RATE | N11: IN TAXES | O11: IN TAXES
B12: (A) | C12: (B) | E12: (C) | F12: (D) | G12: (E) | H12: (G) | I12: (H) | J12: (I) | K12: (J) | L12: (K) | M12: (L) | N12: (M) | O12: (N)
E13: (B*RATE/MI) | F13: (G*RATE/MI) | G13: (D-C) | I13: (G*RATE/MI) | J13: (B*RATE/MI) | K13: (I-H) | L13: (E+J) | N13: (L*K) | O13: (L*K)
A15: CAPE GIRARDEAU
B16: STATE | C16: 0 | E16: =C16*$E$11 -> 0 | F16: =H16*$F$11 -> 402.8064 | G16: =-E16+F16 -> 402.8064 | H16: 1.5 | I16: =H16*$I$11 -> 73201.605 | J16: =C16*$J$11 -> 0 | K16: =-I16+J16 -> -73201.605 | L16: =G16+K16 -> -72798.7986 | M16: 0.03 | N16: =M16*L16/100 -> -21.83963958 | O16: $
B17: COUNTY | C17: 0 | E17: =C17*$E$11 -> 0 | F17: =H17*$F$11 -> 402.8064 | G17: =-E17+F17 -> 402.8064 | H17: 1.5 | I17: =H17*$I$11 -> 73201.605 | J17: =C17*$J$11 -> 0 | K17: =-I17+J17 -> -73201.605 | L17: =G17+K17 -> -72798.7986 | M17: 0.0554 | N17: =M17*L17/100 -> -40.33053442
B18: SCHOOL DISTRICTS
B19: Jackson R-II | C19: 0 | E19: =C19*$E$11 -> 0 | F19: =H19*$F$11 -> 402.8064 | G19: =-E19+F19 -> 402.8064 | H19: 1.5 | L19: =G19+K19 -> 402.8064 | M19: 3.4398 | O19: =M19*L19/100 -> 13.85573455 | P19: (A)
B20: Delta R-V | C20: 0 | E20: =C20*$E$11 -> 0 | F20: 0 | G20: =-E20+F20 -> 0 | H20: 0 | L20: 0 | M20: 0 | O20: =M20*L20/100 -> 0 | P20: (A)
B21: Oak Ridge R-VI | C21: 0 | E21: 0 | F21: 0 | G21: =-E21+F21 -> 0 | H21: 0 | L21: 0 | M21: 0 | O21: =M21*L21/100 -> 0 | P21: (A)
B22: Cape Girardeau 63 | C22: 0 | E22: 0 | F22: 0 | G22: =-E22+F22 -> 0 | H22: 0 | L22: 0 | M22: 0 | O22: =M22*L22/100 -> 0 | P22: (A)
B23: Nell Holcomb R-IV | C23: 0 | E23: 0 | F23: 0 | G23: =-E23+F23 -> 0 | H23: 0 | L23: 0 | M23: 0 | O23: =M23*L23/100 -> 0
B24: AVERAGE SCHOOL RATE(3.62594) | I24: =SUM(H19:H23)*$I$11 -> 73201.605 | J24: =SUM(C19:C23)*$J$11 -> 0 | K24: =-I24+J24 -> -73201.605 | L24: -73201.605 | M24: 3.62594 | N24: =M24*L24/100 -> -2654.246276
C25: ---------- | E25: ----------- | F25: ----------- | G25: -------- | H25: --------- | I25: ------------- | J25: ------------- | K25: ------------- | L25: ------------- | N25: ----------- | O25: -----------
B26: SUB TOTAL ALL SCHOOL DIST. | C26: =SUM(C19:C23) -> 0 | E26: =SUM(E19:E23) -> 0 | F26: =SUM(F19:F23) -> 402.8064 | G26: =SUM(G19:G23) -> 402.8064 | H26: =SUM(H19:H23) -> 1.5 | I26: =I24 -> 73201.605 | J26: =J24 -> 0 | K26: =K24 -> -73201.605 | L26: =SUM(L19:L24) -> -72798.7986 | N26: =N24 -> -2654.246276 | O26: =SUM(O19:O23) -> 13.85573455
B28: SENIOR SERVICES | C28: 0 | E28: =C28*$E$11 -> 0 | F28: =H28*$F$11 -> 402.8064 | G28: =-E28+F28 -> 402.8064 | H28: 1.5 | I28: =H28*$I$11 -> 73201.605 | J28: =C28*$J$11 -> 0 | K28: =-I28+J28 -> -73201.605 | L28: =G28+K28 -> -72798.7986 | M28: 0.0479 | N28: =M28*L28/100 -> -34.87062453
B29: FRUITLAND FIRE | C29: 0 | E29: 0 | F29: 402.8064 | G29: 402.8064 | H29: 1.5 | I29: 73201.605 | J29: =C29*$J$11 -> 0 | K29: -73201.605 | L29: -72798.7986 | M29: 0.07693 | N29: -56.00411576
B30: MENTAL HEALTH | C30: 0 | E30: 0 | F30: 402.8064 | G30: 402.8064 | H30: 1.5 | I30: 73201.605 | J30: 0 | K30: -73201.605 | L30: -72798.7986 | M30: 0.0773 | N30: -56.27347132
C31: 0 | E31: 0 | F31: 0 | G31: 0 | H31: 0 | I31: 0 | J31: 0 | K31: 0 | L31: 0 | M31: 0 | N31: 0
B32: COUNTY HEALTH | C32: 0 | E32: 0 | F32: 402.8064 | G32: 402.8064 | H32: 1.5 | I32: 73201.605 | J32: 0 | K32: -73201.605 | L32: -72798.7986 | M32: 0 | N32: 0
B33: SHELTERED WORKSHOP | C33: 0 | E33: 0 | F33: 402.8064 | G33: 402.8064 | H33: 1.5 | I33: 73201.605 | J33: 0 | K33: -73201.605 | L33: -72798.7986 | M33: 0.0554 | N33: -40.33053442
B34: REGIONAL LIBRARY | C34: 0 | E34: 0 | F34: 402.8064 | G34: 402.8064 | H34: 1.5 | I34: 73201.605 | J34: 0 | K34: -73201.605 | L34: -72798.7986 | M34: 0.0729 | N34: -53.07032418
B35: CAPE GIRARDEAU COUNTY ROAD & BRIDGE | C35: 0 | E35: 0 | F35: 402.8064 | G35: =-E35+F35 -> 402.8064 | H35: 1.5 | I35: 73201.605 | J35: 0 | K35: =-I35+J35 -> -73201.605 | L35: =G35+K35 -> -72798.7986 | M35: 0 | N35: =M35*L35/100 -> 0
C36: 0 | E36: 0 | F36: 0 | G36: =-E36+F36 -> 0 | H36: 0 | I36: 0 | J36: 0 | K36: =-I36+J36 -> 0 | L36: =G36+K36 -> 0 | M36: 0 | N36: =M36*L36/100 -> 0
C37: 0 | E37: 0 | F37: 0 | G37: =-E37+F37 -> 0 | H37: 0 | I37: 0 | J37: 0 | K37: =-I37+J37 -> 0 | L37: =G37+K37 -> 0 | M37: 0 | N37: =M37*L37/100 -> 0
A40: (A) EACH LOCAL ASSESSED SCHOOL DISTRICT WILL ALSO INCUR A SHARE OF THE $2,654 DISTRIBUTABLE TAX DECREASE BASED ON ENROLLMENT AND OTHER CRITERIA.
